[Event "Titled Tuesday Blitz October 04 Early 2022"]
[White "Saydaliev, Saidakbar"]
[Black "Sarana, Alexey"]
[WhiteFideId "14203693"]
[BlackFideId "24133795"]
[WhiteElo "2276"]
[BlackElo "2689"]
[Result "1-0"]
[Round "03"]
[TimeControl "180+1"]
[Date "2022.10.04"]
[WhiteClock "0:00:44"]
[BlackClock "0:00:01"]

1. e4 {[%clk 0:03:00]}  c5 {[%clk 0:03:00]} 2. Nf3 {[%clk 0:03:00]}  d6 {[%clk 0:03:00]} 3. Bb5+ {[%clk 0:02:58]}  Nd7 {[%clk 0:02:57]} 4. Ba4 {[%clk 0:02:57]}  Nf6 {[%clk 0:02:57]} 5. O-O {[%clk 0:02:57]}  e6 {[%clk 0:02:56]} 6. d3 {[%clk 0:02:53]}  Be7 {[%clk 0:02:53]} 7. c4 {[%clk 0:02:53]}  O-O {[%clk 0:02:52]} 8. Nc3 {[%clk 0:02:53]}  Ne5 {[%clk 0:02:51]} 9. Nxe5 {[%clk 0:02:48]}  dxe5 {[%clk 0:02:52]} 10. Be3 {[%clk 0:02:45]}  Bd7 {[%clk 0:02:51]} 11. Rb1 {[%clk 0:02:34]}  a6 {[%clk 0:02:50]} 12. a3 {[%clk 0:02:32]}  Rb8 {[%clk 0:02:43]} 13. Bxd7 {[%clk 0:02:29]}  Qxd7 {[%clk 0:02:35]} 14. b4 {[%clk 0:02:19]}  cxb4 {[%clk 0:02:29]} 15. axb4 {[%clk 0:02:20]}  Rfd8 {[%clk 0:02:29]} 16. Qb3 {[%clk 0:02:20]}  Ng4 {[%clk 0:02:06]} 17. Bb6 {[%clk 0:02:20]}  Rdc8 {[%clk 0:02:04]} 18. h3 {[%clk 0:02:17]}  Nf6 {[%clk 0:01:51]} 19. Rfd1 {[%clk 0:02:17]}  Nh5 {[%clk 0:01:51]} 20. g3 {[%clk 0:02:08]}  Nf6 {[%clk 0:01:41]} 21. b5 {[%clk 0:02:02]}  h5 {[%clk 0:01:38]} 22. Ba7 {[%clk 0:01:56]}  Ra8 {[%clk 0:01:38]} 23. Be3 {[%clk 0:01:57]}  h4 {[%clk 0:01:27]} 24. g4 {[%clk 0:01:56]}  Qe8 {[%clk 0:01:27]} 25. Na4 {[%clk 0:01:53]}  axb5 {[%clk 0:01:17]} 26. cxb5 {[%clk 0:01:44]}  Nd7 {[%clk 0:01:16]} 27. Rdc1 {[%clk 0:01:42]}  Qd8 {[%clk 0:01:13]} 28. Rc4 {[%clk 0:01:39]}  Bg5 {[%clk 0:01:09]} 29. Bxg5 {[%clk 0:01:14]}  Qxg5 {[%clk 0:01:08]} 30. Qb4 {[%clk 0:01:15]}  Rxc4 {[%clk 0:00:59]} 31. dxc4 {[%clk 0:01:13]}  Qf4 {[%clk 0:00:41]} 32. c5 {[%clk 0:01:13]}  Rc8 {[%clk 0:00:23]} 33. c6 {[%clk 0:00:54]}  bxc6 {[%clk 0:00:23]} 34. b6 {[%clk 0:00:55]}  Qf3 {[%clk 0:00:15]} 35. Rb3 {[%clk 0:00:52]}  Qd1+ {[%clk 0:00:14]} 36. Kg2 {[%clk 0:00:53]}  c5 {[%clk 0:00:11]} 37. Qc4 {[%clk 0:00:53]}  Rb8 {[%clk 0:00:05]} 38. Rd3 {[%clk 0:00:47]}  Qe2 {[%clk 0:00:05]} 39. Nc3 {[%clk 0:00:48]}  Nxb6 {[%clk 0:00:04]} 40. Rd8+ {[%clk 0:00:48]}  Rxd8 {[%clk 0:00:03]} 41. Qxe2 {[%clk 0:00:48]}  c4 {[%clk 0:00:03]} 42. Qb2 {[%clk 0:00:47]}  Nd7 {[%clk 0:00:03]} 43. Qd2 {[%clk 0:00:48]}  Kf8 {[%clk 0:00:03]} 44. Qd6+ {[%clk 0:00:48]}  Ke8 {[%clk 0:00:03]} 45. Nb5 {[%clk 0:00:48]}  Rc8 {[%clk 0:00:04]} 46. Qb4 {[%clk 0:00:47]}  Rb8 {[%clk 0:00:01]} 47. Qxc4 {[%clk 0:00:46]}  Kd8 {[%clk 0:00:01]} 48. Qc7+ {[%clk 0:00:45]}  Ke7 {[%clk 0:00:01]} 49. Qd6+ {[%clk 0:00:44]} 1-0


[Site "https://www.chess.com"]

[Event "Titled Tuesday Blitz October 04 Early 2022"]
[White "Tang, Andrew"]
[Black "Bazeev, German"]
[WhiteFideId "2059630"]
[BlackFideId "24119350"]
[WhiteElo "2581"]
[BlackElo "2493"]
[Result "1-0"]
[Round "03"]
[TimeControl "180+1"]
[Date "2022.10.04"]
[WhiteClock "0:00:06"]
[BlackClock "0:00:08"]

1. d4 {[%clk 0:03:00]}  Nf6 {[%clk 0:02:59]} 2. Nf3 {[%clk 0:02:57]}  e6 {[%clk 0:02:59]} 3. Bf4 {[%clk 0:02:57]}  b6 {[%clk 0:02:59]} 4. e3 {[%clk 0:02:57]}  Bb7 {[%clk 0:02:59]} 5. Nbd2 {[%clk 0:02:57]}  Bd6 {[%clk 0:03:00]} 6. Ne5 {[%clk 0:02:41]}  Nc6 {[%clk 0:02:56]} 7. c3 {[%clk 0:02:31]}  h6 {[%clk 0:02:52]} 8. Bd3 {[%clk 0:02:25]}  Bxe5 {[%clk 0:02:06]} 9. dxe5 {[%clk 0:02:18]}  Nd5 {[%clk 0:02:06]} 10. Bg3 {[%clk 0:02:18]}  Nde7 {[%clk 0:02:07]} 11. Nf3 {[%clk 0:01:08]}  Nf5 {[%clk 0:01:56]} 12. Bxf5 {[%clk 0:01:07]}  exf5 {[%clk 0:01:57]} 13. Qd3 {[%clk 0:01:01]}  g6 {[%clk 0:01:55]} 14. Bh4 {[%clk 0:00:59]}  g5 {[%clk 0:01:52]} 15. Bg3 {[%clk 0:00:58]}  Ne7 {[%clk 0:01:53]} 16. O-O-O {[%clk 0:00:58]}  Be4 {[%clk 0:01:51]} 17. Qc4 {[%clk 0:00:46]}  b5 {[%clk 0:01:46]} 18. Qxb5 {[%clk 0:00:45]}  Rb8 {[%clk 0:01:43]} 19. Qc4 {[%clk 0:00:39]}  Qc8 {[%clk 0:01:40]} 20. Rd2 {[%clk 0:00:38]}  Qb7 {[%clk 0:01:16]} 21. Rhd1 {[%clk 0:00:32]}  Rg8 {[%clk 0:00:55]} 22. Nd4 {[%clk 0:00:20]}  Rg6 {[%clk 0:00:52]} 23. f3 {[%clk 0:00:19]}  Bd5 {[%clk 0:00:51]} 24. Qd3 {[%clk 0:00:17]}  Bxa2 {[%clk 0:00:36]} 25. Nxf5 {[%clk 0:00:16]}  Nxf5 {[%clk 0:00:30]} 26. Qxd7+ {[%clk 0:00:15]}  Kf8 {[%clk 0:00:30]} 27. Qxf5 {[%clk 0:00:15]}  Be6 {[%clk 0:00:23]} 28. Rd8+ {[%clk 0:00:15]}  Kg7 {[%clk 0:00:20]} 29. Rxb8 {[%clk 0:00:15]}  Qxb8 {[%clk 0:00:20]} 30. Qe4 {[%clk 0:00:15]}  Qb3 {[%clk 0:00:19]} 31. Qb4 {[%clk 0:00:15]}  Qa2 {[%clk 0:00:16]} 32. Qa3 {[%clk 0:00:14]}  Qc4 {[%clk 0:00:15]} 33. Qxa7 {[%clk 0:00:13]}  g4 {[%clk 0:00:13]} 34. Qd4 {[%clk 0:00:12]}  Qe2 {[%clk 0:00:12]} 35. Qd2 {[%clk 0:00:12]}  Qa6 {[%clk 0:00:12]} 36. Qd3 {[%clk 0:00:09]}  Qa1+ {[%clk 0:00:11]} 37. Qb1 {[%clk 0:00:09]}  Qa4 {[%clk 0:00:10]} 38. f4 {[%clk 0:00:09]}  Bb3 {[%clk 0:00:10]} 39. f5 {[%clk 0:00:06]}  Bxd1 {[%clk 0:00:09]} 40. fxg6 {[%clk 0:00:06]}  fxg6 {[%clk 0:00:09]} 41. e6 {[%clk 0:00:06]}  Bb3 {[%clk 0:00:08]} 42. e7 {[%clk 0:00:06]}  Bf7 {[%clk 0:00:09]} 43. Qd3 {[%clk 0:00:05]}  Qa1+ {[%clk 0:00:09]} 44. Kc2 {[%clk 0:00:06]}  Qa4+ {[%clk 0:00:09]} 45. Kd2 {[%clk 0:00:06]}  Qe8 {[%clk 0:00:10]} 46. Qd4+ {[%clk 0:00:06]}  Kg8 {[%clk 0:00:10]} 47. Qf6 {[%clk 0:00:06]}  Kh7 {[%clk 0:00:08]} 48. Be5 {[%clk 0:00:06]}  g5 {[%clk 0:00:08]} 49. Qg7# {[%clk 0:00:06]} 1-0


[Site "https://www.chess.com"]

[Event "Titled Tuesday Blitz October 04 Early 2022"]
[White "Yanchenko, Roman"]
[Black "Andreikin, Dmitry"]
[WhiteFideId "4137329"]
[BlackFideId "4158814"]
[WhiteElo "2514"]
[BlackElo "2736"]
[Result "0-1"]
[Round "03"]
[TimeControl "180+1"]
[Date "2022.10.04"]
[WhiteClock "0:00:08"]
[BlackClock "0:01:27"]

1. d4 {[%clk 0:02:56]}  d5 {[%clk 0:03:00]} 2. c4 {[%clk 0:02:57]}  e6 {[%clk 0:03:00]} 3. Nc3 {[%clk 0:02:57]}  c5 {[%clk 0:03:00]} 4. e3 {[%clk 0:02:56]}  Nf6 {[%clk 0:02:58]} 5. Nf3 {[%clk 0:02:55]}  a6 {[%clk 0:02:52]} 6. dxc5 {[%clk 0:02:49]}  Bxc5 {[%clk 0:02:51]} 7. a3 {[%clk 0:02:47]}  O-O {[%clk 0:02:51]} 8. b4 {[%clk 0:02:47]}  Be7 {[%clk 0:02:50]} 9. Bb2 {[%clk 0:02:44]}  dxc4 {[%clk 0:02:47]} 10. Bxc4 {[%clk 0:02:45]}  b5 {[%clk 0:02:41]} 11. Be2 {[%clk 0:02:45]}  Bb7 {[%clk 0:02:41]} 12. O-O {[%clk 0:02:45]}  Nbd7 {[%clk 0:02:40]} 13. Rc1 {[%clk 0:02:43]}  Nb6 {[%clk 0:02:38]} 14. Qd4 {[%clk 0:02:36]}  Rc8 {[%clk 0:02:34]} 15. Rfd1 {[%clk 0:02:33]}  Qxd4 {[%clk 0:02:33]} 16. Nxd4 {[%clk 0:02:33]}  Nc4 {[%clk 0:02:33]} 17. Bxc4 {[%clk 0:02:30]}  Rxc4 {[%clk 0:02:33]} 18. Nb3 {[%clk 0:02:28]}  Ba8 {[%clk 0:02:33]} 19. Na5 {[%clk 0:02:23]}  Rc7 {[%clk 0:02:33]} 20. Ne2 {[%clk 0:02:22]}  Rfc8 {[%clk 0:02:30]} 21. Rxc7 {[%clk 0:02:07]}  Rxc7 {[%clk 0:02:31]} 22. Be5 {[%clk 0:02:08]}  Rc8 {[%clk 0:02:28]} 23. f3 {[%clk 0:01:58]}  h5 {[%clk 0:02:22]} 24. e4 {[%clk 0:01:54]}  h4 {[%clk 0:02:22]} 25. h3 {[%clk 0:01:52]}  Kh7 {[%clk 0:02:22]} 26. Rc1 {[%clk 0:01:22]}  Rxc1+ {[%clk 0:02:21]} 27. Nxc1 {[%clk 0:01:23]}  Nd7 {[%clk 0:02:21]} 28. Bd4 {[%clk 0:01:23]}  f5 {[%clk 0:02:18]} 29. exf5 {[%clk 0:01:21]}  exf5 {[%clk 0:02:18]} 30. Nd3 {[%clk 0:01:21]}  g5 {[%clk 0:02:15]} 31. Nb3 {[%clk 0:01:18]}  Bb7 {[%clk 0:02:10]} 32. Nbc5 {[%clk 0:01:16]}  Nxc5 {[%clk 0:02:09]} 33. Nxc5 {[%clk 0:01:09]}  Bc8 {[%clk 0:02:09]} 34. f4 {[%clk 0:00:50]}  g4 {[%clk 0:01:59]} 35. Kf2 {[%clk 0:00:48]}  Kg6 {[%clk 0:01:59]} 36. Ke3 {[%clk 0:00:48]}  Kf7 {[%clk 0:01:57]} 37. Be5 {[%clk 0:00:47]}  g3 {[%clk 0:01:53]} 38. Bd4 {[%clk 0:00:44]}  Bxc5 {[%clk 0:01:50]} 39. bxc5 {[%clk 0:00:10]}  Bb7 {[%clk 0:01:51]} 40. Bc3 {[%clk 0:00:10]}  Bxg2 {[%clk 0:01:49]} 41. Ba5 {[%clk 0:00:11]}  Ke8 {[%clk 0:01:38]} 42. Bc3 {[%clk 0:00:10]}  Ke7 {[%clk 0:01:39]} 43. Bg7 {[%clk 0:00:06]}  Bxh3 {[%clk 0:01:37]} 44. Bh6 {[%clk 0:00:07]}  Kd7 {[%clk 0:01:35]} 45. Bg5 {[%clk 0:00:07]}  Kc6 {[%clk 0:01:36]} 46. Bxh4 {[%clk 0:00:07]}  g2 {[%clk 0:01:36]} 47. Bf2 {[%clk 0:00:07]}  Kxc5 {[%clk 0:01:36]} 48. Kf3+ {[%clk 0:00:08]}  Kc4 {[%clk 0:01:34]} 49. Kg3 {[%clk 0:00:08]}  a5 {[%clk 0:01:27]} 50. Kxh3 {[%clk 0:00:07]}  b4 {[%clk 0:01:28]} 51. axb4 {[%clk 0:00:07]}  axb4 {[%clk 0:01:26]} 52. Kxg2 {[%clk 0:00:07]}  b3 {[%clk 0:01:26]} 53. Kh3 {[%clk 0:00:07]}  b2 {[%clk 0:01:27]} 54. Kh4 {[%clk 0:00:07]}  b1=Q {[%clk 0:01:27]} 55. Kg5 {[%clk 0:00:08]}  Kd5 {[%clk 0:01:27]} 56. Kf6 {[%clk 0:00:08]}  Ke4 {[%clk 0:01:28]} 57. Kg5 {[%clk 0:00:08]}  Qf1 {[%clk 0:01:27]} 0-1


[Site "https://www.chess.com"]

[Event "Titled Tuesday Blitz October 04 Early 2022"]
[White "Baskakov, Egor"]
[Black "Ivic, Velimir"]
[WhiteFideId "24197866"]
[BlackFideId "950122"]
[WhiteElo "2211"]
[BlackElo "2625"]
[Result "0-1"]
[Round "04"]
[TimeControl "180+1"]
[Date "2022.10.04"]
[WhiteClock "0:00:33"]
[BlackClock "0:00:59"]

1. e4 {[%clk 0:03:00]}  c5 {[%clk 0:02:59]} 2. Nf3 {[%clk 0:02:59]}  Nc6 {[%clk 0:03:00]} 3. Nc3 {[%clk 0:02:59]}  e5 {[%clk 0:02:59]} 4. Nd5 {[%clk 0:02:59]}  d6 {[%clk 0:02:58]} 5. c3 {[%clk 0:02:59]}  Bg4 {[%clk 0:02:48]} 6. h3 {[%clk 0:02:56]}  Bh5 {[%clk 0:02:48]} 7. Bb5 {[%clk 0:02:53]}  Nf6 {[%clk 0:02:46]} 8. g4 {[%clk 0:02:45]}  Bg6 {[%clk 0:02:46]} 9. d3 {[%clk 0:02:46]}  a6 {[%clk 0:02:44]} 10. Nxf6+ {[%clk 0:02:45]}  Qxf6 {[%clk 0:02:37]} 11. Bc4 {[%clk 0:02:42]}  Qd8 {[%clk 0:02:33]} 12. h4 {[%clk 0:02:39]}  h5 {[%clk 0:02:32]} 13. Ng5 {[%clk 0:02:39]}  Qd7 {[%clk 0:02:30]} 14. f3 {[%clk 0:02:12]}  O-O-O {[%clk 0:02:22]} 15. Be3 {[%clk 0:02:08]}  Re8 {[%clk 0:02:14]} 16. b4 {[%clk 0:02:04]}  f6 {[%clk 0:02:13]} 17. Nh3 {[%clk 0:01:52]}  hxg4 {[%clk 0:02:13]} 18. Nf2 {[%clk 0:01:52]}  g3 {[%clk 0:02:11]} 19. Ng4 {[%clk 0:01:52]}  f5 {[%clk 0:02:09]} 20. exf5 {[%clk 0:01:50]}  Bxf5 {[%clk 0:02:10]} 21. Bd5 {[%clk 0:01:38]}  Ne7 {[%clk 0:01:52]} 22. Be4 {[%clk 0:01:39]}  d5 {[%clk 0:01:52]} 23. Bxf5 {[%clk 0:01:38]}  Nxf5 {[%clk 0:01:52]} 24. Bxc5 {[%clk 0:01:37]}  Nxh4 {[%clk 0:01:45]} 25. Rg1 {[%clk 0:01:32]}  Bxc5 {[%clk 0:01:33]} 26. bxc5 {[%clk 0:01:33]}  Qf5 {[%clk 0:01:31]} 27. Rxg3 {[%clk 0:01:29]}  e4 {[%clk 0:01:31]} 28. fxe4 {[%clk 0:01:09]}  dxe4 {[%clk 0:01:29]} 29. d4 {[%clk 0:01:09]}  Nf3+ {[%clk 0:01:29]} 30. Ke2 {[%clk 0:01:08]}  Qf4 {[%clk 0:01:22]} 31. Rg2 {[%clk 0:01:07]}  Nh4 {[%clk 0:01:20]} 32. Rg1 {[%clk 0:00:58]}  Qf3+ {[%clk 0:01:17]} 33. Kd2 {[%clk 0:00:58]}  e3+ {[%clk 0:01:18]} 34. Kc2 {[%clk 0:00:56]}  e2 {[%clk 0:01:18]} 35. Qd2 {[%clk 0:00:51]}  Qe4+ {[%clk 0:01:16]} 36. Qd3 {[%clk 0:00:49]}  Nf3 {[%clk 0:01:14]} 37. Ne5 {[%clk 0:00:37]}  Rxe5 {[%clk 0:01:01]} 38. dxe5 {[%clk 0:00:37]}  e1=N+ {[%clk 0:00:59]} 39. Raxe1 {[%clk 0:00:33]}  Rh2+ {[%clk 0:00:59]} 0-1


[Site "https://www.chess.com"]

[Event "Titled Tuesday Blitz October 04 Early 2022"]
[White "Bortnyk, Olexandr"]
[Black "Beerdsen, Thomas"]
[WhiteFideId "14120828"]
[BlackFideId "1030108"]
[WhiteElo "2723"]
[BlackElo "2567"]
[Result "1/2-1/2"]
[Round "04"]
[TimeControl "180+1"]
[Date "2022.10.04"]
[WhiteClock "0:00:13"]
[BlackClock "0:00:25"]

1. e4 {[%clk 0:02:55]}  e5 {[%clk 0:02:58]} 2. Bc4 {[%clk 0:02:54]}  Nf6 {[%clk 0:02:58]} 3. d3 {[%clk 0:02:54]}  c6 {[%clk 0:02:58]} 4. Nf3 {[%clk 0:02:55]}  d5 {[%clk 0:02:57]} 5. Bb3 {[%clk 0:02:55]}  a5 {[%clk 0:02:58]} 6. a4 {[%clk 0:02:50]}  Bb4+ {[%clk 0:02:57]} 7. Bd2 {[%clk 0:02:50]}  Bxd2+ {[%clk 0:02:57]} 8. Qxd2 {[%clk 0:02:51]}  O-O {[%clk 0:02:57]} 9. Nc3 {[%clk 0:02:51]}  Re8 {[%clk 0:02:55]} 10. h3 {[%clk 0:02:49]}  Na6 {[%clk 0:02:55]} 11. exd5 {[%clk 0:02:16]}  e4 {[%clk 0:02:46]} 12. dxe4 {[%clk 0:02:11]}  Nxe4 {[%clk 0:02:45]} 13. Nxe4 {[%clk 0:02:11]}  Rxe4+ {[%clk 0:02:46]} 14. Kf1 {[%clk 0:02:11]}  Nc5 {[%clk 0:02:01]} 15. dxc6 {[%clk 0:02:09]}  Qf6 {[%clk 0:01:43]} 16. Rd1 {[%clk 0:01:02]}  Bf5 {[%clk 0:01:20]} 17. c7 {[%clk 0:00:37]}  Rae8 {[%clk 0:01:11]} 18. Qd6 {[%clk 0:00:20]}  Ne6 {[%clk 0:00:54]} 19. Bd5 {[%clk 0:00:20]}  Rb4 {[%clk 0:00:48]} 20. Qd7 {[%clk 0:00:19]}  Nxc7 {[%clk 0:00:37]} 21. Qxc7 {[%clk 0:00:20]}  Rxb2 {[%clk 0:00:38]} 22. Bb3 {[%clk 0:00:12]}  h6 {[%clk 0:00:31]} 23. Qxa5 {[%clk 0:00:08]}  Bxc2 {[%clk 0:00:29]} 24. Bxc2 {[%clk 0:00:06]}  Rxc2 {[%clk 0:00:29]} 25. Kg1 {[%clk 0:00:05]}  Ree2 {[%clk 0:00:30]} 26. Qd8+ {[%clk 0:00:04]}  Qxd8 {[%clk 0:00:27]} 27. Rxd8+ {[%clk 0:00:05]}  Kh7 {[%clk 0:00:27]} 28. Kh2 {[%clk 0:00:05]}  Rxf2 {[%clk 0:00:28]} 29. Rg1 {[%clk 0:00:06]}  Rxf3 {[%clk 0:00:29]} 30. Rd7 {[%clk 0:00:04]}  Rf4 {[%clk 0:00:26]} 31. Rxb7 {[%clk 0:00:04]}  Rxa4 {[%clk 0:00:27]} 32. Rxf7 {[%clk 0:00:04]}  Raa2 {[%clk 0:00:27]} 33. Rf3 {[%clk 0:00:04]}  h5 {[%clk 0:00:19]} 34. Rg3 {[%clk 0:00:04]}  Rc7 {[%clk 0:00:15]} 35. Rd1 {[%clk 0:00:04]}  Ra5 {[%clk 0:00:13]} 36. Rd6 {[%clk 0:00:04]}  Rf5 {[%clk 0:00:13]} 37. Rdg6 {[%clk 0:00:03]}  Rcf7 {[%clk 0:00:14]} 38. h4 {[%clk 0:00:03]}  Rf4 {[%clk 0:00:13]} 39. Kh3 {[%clk 0:00:04]}  R4f5 {[%clk 0:00:14]} 40. R3g5 {[%clk 0:00:03]}  Rxg5 {[%clk 0:00:14]} 41. Rxg5 {[%clk 0:00:03]}  g6 {[%clk 0:00:15]} 42. Rc5 {[%clk 0:00:03]}  Kg7 {[%clk 0:00:13]} 43. Rc6 {[%clk 0:00:04]}  Rf6 {[%clk 0:00:13]} 44. Rc7+ {[%clk 0:00:04]}  Rf7 {[%clk 0:00:14]} 45. Rc5 {[%clk 0:00:03]}  Rf4 {[%clk 0:00:13]} 46. Rc3 {[%clk 0:00:02]}  Rg4 {[%clk 0:00:13]} 47. Rc7+ {[%clk 0:00:02]}  Kh6 {[%clk 0:00:13]} 48. Rb7 {[%clk 0:00:03]}  Rc4 {[%clk 0:00:13]} 49. Rb6 {[%clk 0:00:03]}  Ra4 {[%clk 0:00:14]} 50. g3 {[%clk 0:00:03]}  Ra2 {[%clk 0:00:14]} 51. Rb8 {[%clk 0:00:04]}  Kg7 {[%clk 0:00:14]} 52. Rb7+ {[%clk 0:00:04]}  Kf6 {[%clk 0:00:15]} 53. Rb6+ {[%clk 0:00:04]}  Kg7 {[%clk 0:00:16]} 54. Rc6 {[%clk 0:00:05]}  Kf7 {[%clk 0:00:16]} 55. Rc7+ {[%clk 0:00:05]}  Kf6 {[%clk 0:00:17]} 56. Rc5 {[%clk 0:00:06]}  Kg7 {[%clk 0:00:17]} 57. Rc3 {[%clk 0:00:06]}  Ra7 {[%clk 0:00:17]} 58. Rf3 {[%clk 0:00:06]}  Rc7 {[%clk 0:00:15]} 59. Rf2 {[%clk 0:00:06]}  Rc1 {[%clk 0:00:15]} 60. Kg2 {[%clk 0:00:06]}  Rb1 {[%clk 0:00:16]} 61. Rd2 {[%clk 0:00:06]}  Rb7 {[%clk 0:00:15]} 62. Rd6 {[%clk 0:00:05]}  Rb3 {[%clk 0:00:16]} 63. Rc6 {[%clk 0:00:04]}  Ra3 {[%clk 0:00:16]} 64. Rc7+ {[%clk 0:00:04]}  Kh6 {[%clk 0:00:16]} 65. Rc4 {[%clk 0:00:05]}  Rb3 {[%clk 0:00:16]} 66. Rc8 {[%clk 0:00:05]}  Ra3 {[%clk 0:00:17]} 67. Rc2 {[%clk 0:00:05]}  Rb3 {[%clk 0:00:17]} 68. Rf2 {[%clk 0:00:06]}  Ra3 {[%clk 0:00:18]} 69. Rf3 {[%clk 0:00:06]}  Rxf3 {[%clk 0:00:18]} 70. Kxf3 {[%clk 0:00:07]}  g5 {[%clk 0:00:19]} 71. Ke4 {[%clk 0:00:06]}  gxh4 {[%clk 0:00:19]} 72. gxh4 {[%clk 0:00:07]}  Kh7 {[%clk 0:00:19]} 73. Kf5 {[%clk 0:00:08]}  Kh8 {[%clk 0:00:20]} 74. Kg5 {[%clk 0:00:08]}  Kg8 {[%clk 0:00:21]} 75. Kxh5 {[%clk 0:00:09]}  Kh8 {[%clk 0:00:22]} 76. Kg6 {[%clk 0:00:10]}  Kg8 {[%clk 0:00:23]} 77. h5 {[%clk 0:00:10]}  Kh8 {[%clk 0:00:24]} 78. h6 {[%clk 0:00:11]}  Kg8 {[%clk 0:00:24]} 79. h7+ {[%clk 0:00:12]}  Kh8 {[%clk 0:00:25]} 80. Kh6 {[%clk 0:00:13]} 1/2-1/2


[Site "https://www.chess.com"]

[Event "Titled Tuesday Blitz October 04 Early 2022"]
[White "Duda, Jan-Krzysztof"]
[Black "Nigmatov, Ortik"]
[WhiteFideId "1170546"]
[BlackFideId "14202131"]
[WhiteElo "2779"]
[BlackElo "2378"]
[Result "1-0"]
[Round "04"]
[TimeControl "180+1"]
[Date "2022.10.04"]
[WhiteClock "0:00:19"]
[BlackClock "0:00:02"]

1. d4 {[%clk 0:03:00]}  Nf6 {[%clk 0:02:59]} 2. Bf4 {[%clk 0:02:59]}  g6 {[%clk 0:02:59]} 3. e3 {[%clk 0:02:59]}  Bg7 {[%clk 0:03:00]} 4. Nf3 {[%clk 0:02:59]}  O-O {[%clk 0:03:01]} 5. Be2 {[%clk 0:02:58]}  d5 {[%clk 0:03:01]} 6. h4 {[%clk 0:02:52]}  c5 {[%clk 0:03:01]} 7. c3 {[%clk 0:02:52]}  Nc6 {[%clk 0:03:01]} 8. Nbd2 {[%clk 0:02:51]}  Bg4 {[%clk 0:02:47]} 9. dxc5 {[%clk 0:02:49]}  Nd7 {[%clk 0:02:42]} 10. Nb3 {[%clk 0:02:47]}  e5 {[%clk 0:02:34]} 11. Bg3 {[%clk 0:02:32]}  e4 {[%clk 0:02:33]} 12. Nfd4 {[%clk 0:02:23]}  Bxe2 {[%clk 0:02:33]} 13. Nxe2 {[%clk 0:02:21]}  Nce5 {[%clk 0:02:34]} 14. Bxe5 {[%clk 0:02:16]}  Nxe5 {[%clk 0:02:34]} 15. Nf4 {[%clk 0:02:16]}  Bh6 {[%clk 0:02:18]} 16. Nc1 {[%clk 0:02:10]}  Rc8 {[%clk 0:01:47]} 17. h5 {[%clk 0:01:47]}  Bxf4 {[%clk 0:01:21]} 18. exf4 {[%clk 0:01:48]}  Nc4 {[%clk 0:01:02]} 19. b3 {[%clk 0:01:43]}  Na3 {[%clk 0:01:00]} 20. b4 {[%clk 0:01:19]}  a5 {[%clk 0:00:31]} 21. Nb3 {[%clk 0:01:09]}  Qf6 {[%clk 0:00:26]} 22. Rc1 {[%clk 0:00:55]}  axb4 {[%clk 0:00:20]} 23. cxb4 {[%clk 0:00:56]}  Qxf4 {[%clk 0:00:20]} 24. hxg6 {[%clk 0:00:45]}  hxg6 {[%clk 0:00:21]} 25. Qxd5 {[%clk 0:00:38]}  Rfd8 {[%clk 0:00:19]} 26. Qxb7 {[%clk 0:00:37]}  e3 {[%clk 0:00:19]} 27. O-O {[%clk 0:00:26]}  Kg7 {[%clk 0:00:18]} 28. Qf3 {[%clk 0:00:22]}  Qxf3 {[%clk 0:00:15]} 29. gxf3 {[%clk 0:00:23]}  e2 {[%clk 0:00:08]} 30. Rfe1 {[%clk 0:00:23]}  Re8 {[%clk 0:00:08]} 31. Nd4 {[%clk 0:00:22]}  Rcd8 {[%clk 0:00:09]} 32. Rxe2 {[%clk 0:00:22]}  Rxe2 {[%clk 0:00:06]} 33. Nxe2 {[%clk 0:00:23]}  Rd2 {[%clk 0:00:07]} 34. c6 {[%clk 0:00:22]}  Nb5 {[%clk 0:00:03]} 35. a4 {[%clk 0:00:23]}  Nc7 {[%clk 0:00:04]} 36. Ng3 {[%clk 0:00:23]}  Ra2 {[%clk 0:00:03]} 37. b5 {[%clk 0:00:23]}  Rb2 {[%clk 0:00:03]} 38. Ne4 {[%clk 0:00:22]}  f5 {[%clk 0:00:03]} 39. Nd6 {[%clk 0:00:21]}  Rb4 {[%clk 0:00:02]} 40. a5 {[%clk 0:00:19]} 1-0


[Site "https://www.chess.com"]

[Event "Titled Tuesday Blitz October 04 Early 2022"]
[White "Durarbayli, Vasif"]
[Black "Vasquez Schroeder, Rodrigo"]
[WhiteFideId "13402935"]
[BlackFideId "3400042"]
[WhiteElo "2586"]
[BlackElo "2577"]
[Result "0-1"]
[Round "04"]
[TimeControl "180+1"]
[Date "2022.10.04"]
[WhiteClock "0:00:03"]
[BlackClock "0:00:27"]

1. e4 {[%clk 0:03:00]}  c5 {[%clk 0:02:59]} 2. Nf3 {[%clk 0:03:01]}  d6 {[%clk 0:02:59]} 3. d4 {[%clk 0:03:00]}  cxd4 {[%clk 0:02:59]} 4. Nxd4 {[%clk 0:03:01]}  Nf6 {[%clk 0:02:59]} 5. Nc3 {[%clk 0:03:02]}  a6 {[%clk 0:02:59]} 6. Be2 {[%clk 0:03:02]}  e6 {[%clk 0:02:58]} 7. g4 {[%clk 0:03:00]}  h6 {[%clk 0:02:58]} 8. Be3 {[%clk 0:02:53]}  Qc7 {[%clk 0:02:54]} 9. h4 {[%clk 0:02:50]}  b5 {[%clk 0:02:53]} 10. a3 {[%clk 0:02:50]}  Bb7 {[%clk 0:02:53]} 11. f3 {[%clk 0:02:42]}  d5 {[%clk 0:02:45]} 12. exd5 {[%clk 0:02:40]}  Nxd5 {[%clk 0:02:45]} 13. Nxd5 {[%clk 0:02:39]}  Bxd5 {[%clk 0:02:45]} 14. Qd2 {[%clk 0:02:32]}  Nd7 {[%clk 0:02:40]} 15. O-O-O {[%clk 0:02:25]}  Nc5 {[%clk 0:02:35]} 16. Bf4 {[%clk 0:01:59]}  Bd6 {[%clk 0:02:01]} 17. Bxd6 {[%clk 0:01:29]}  Qxd6 {[%clk 0:02:01]} 18. Nf5 {[%clk 0:01:29]}  Qe5 {[%clk 0:01:42]} 19. Rhe1 {[%clk 0:01:19]}  O-O-O {[%clk 0:01:31]} 20. Ne7+ {[%clk 0:00:52]}  Kb8 {[%clk 0:01:30]} 21. Bxb5 {[%clk 0:00:30]}  Qc7 {[%clk 0:01:30]} 22. Qb4 {[%clk 0:00:24]}  a5 {[%clk 0:01:22]} 23. Nc6+ {[%clk 0:00:13]}  Qxc6 {[%clk 0:01:22]} 24. Bxc6+ {[%clk 0:00:14]}  axb4 {[%clk 0:01:21]} 25. Bxd5 {[%clk 0:00:13]}  Rxd5 {[%clk 0:01:15]} 26. axb4 {[%clk 0:00:13]}  Rxd1+ {[%clk 0:01:07]} 27. Rxd1 {[%clk 0:00:14]}  Nb7 {[%clk 0:01:08]} 28. Rd7 {[%clk 0:00:13]}  Rf8 {[%clk 0:01:07]} 29. c4 {[%clk 0:00:11]}  Kc8 {[%clk 0:01:05]} 30. Re7 {[%clk 0:00:10]}  Nd6 {[%clk 0:01:04]} 31. b3 {[%clk 0:00:09]}  Kd8 {[%clk 0:01:01]} 32. Ra7 {[%clk 0:00:09]}  Nc8 {[%clk 0:01:01]} 33. Rb7 {[%clk 0:00:08]}  g5 {[%clk 0:01:01]} 34. h5 {[%clk 0:00:03]}  f5 {[%clk 0:01:02]} 35. Rh7 {[%clk 0:00:03]}  fxg4 {[%clk 0:01:02]} 36. fxg4 {[%clk 0:00:04]}  Rf4 {[%clk 0:01:02]} 37. Rxh6 {[%clk 0:00:04]}  Rxg4 {[%clk 0:01:03]} 38. Rxe6 {[%clk 0:00:04]}  Rh4 {[%clk 0:01:02]} 39. h6 {[%clk 0:00:05]}  Ne7 {[%clk 0:01:01]} 40. b5 {[%clk 0:00:05]}  Kd7 {[%clk 0:01:02]} 41. Re5 {[%clk 0:00:04]}  g4 {[%clk 0:01:01]} 42. Rg5 {[%clk 0:00:05]}  Ke6 {[%clk 0:00:48]} 43. h7 {[%clk 0:00:04]}  Rxh7 {[%clk 0:00:46]} 44. Rxg4 {[%clk 0:00:04]}  Kd6 {[%clk 0:00:47]} 45. Rg5 {[%clk 0:00:03]}  Rh2 {[%clk 0:00:45]} 46. b4 {[%clk 0:00:03]}  Rh4 {[%clk 0:00:43]} 47. Rc5 {[%clk 0:00:03]}  Kd7 {[%clk 0:00:35]} 48. Kb2 {[%clk 0:00:04]}  Nc8 {[%clk 0:00:34]} 49. Kb3 {[%clk 0:00:04]}  Nd6 {[%clk 0:00:34]} 50. Rc6 {[%clk 0:00:04]}  Rh3+ {[%clk 0:00:31]} 51. Ka4 {[%clk 0:00:05]}  Rc3 {[%clk 0:00:32]} 52. Rc5 {[%clk 0:00:02]}  Nxc4 {[%clk 0:00:31]} 53. b6 {[%clk 0:00:03]}  Ra3+ {[%clk 0:00:26]} 54. Kb5 {[%clk 0:00:03]}  Nd6# {[%clk 0:00:27]} 0-1


[Site "https://www.chess.com"]